bitfinex-derivatives/quotes_SOLF0:USTF0_20241105
["timestamp","ask_amount","ask_price","bid_price","bid_amount"]
[1730803517131,7.61643154,161.6,161.55,10.37643154]
[1730803517336,7.61643154,161.59,161.55,2.76]
[1730803517732,3.0961,161.57,161.55,2.76]
[1730803520945,3.0961,161.57,161.55,5.8563]
[1730803522150,3.0961,161.57,161.56,7.61643154]
[1730803526250,7.61643154,161.61,161.56,7.61643154]
[1730803526446,7.61643154,161.62,161.58,3.0958]
[1730803526651,1.4169,161.64,161.6,7.61643154]
[1730803527747,3.0951,161.62,161.61,7.61643154]
[1730803527944,3.0951,161.62,161.6,7.61643154]
[1730803530251,7.61643154,161.66,161.6,7.61643154]
[1730803530452,8.95363154,161.68,161.63,7.61643154]
[1730803531552,3.0946,161.64,161.62,7.61643154]
[1730803534054,3.0946,161.64,161.61,10.71153154]
[1730803535454,3.0946,161.64,161.61,7.61643154]
[1730803535651,3.0947,161.64,161.61,7.61643154]
[1730803537554,3.0947,161.64,161.62,7.61643154]
[1730803537945,8.95363154,161.68,161.63,7.61643154]
[1730803538150,3.0944,161.66,161.63,10.71123154]
[1730803539150,3.0945,161.65,161.63,7.61643154]
[1730803540959,3.0948,161.64,161.61,10.71153154]
[1730803541162,7.61643154,161.69,161.63,7.61643154]
[1730803541560,6.1862,161.73,161.65,7.61643154]
[1730803541755,3.0939,161.68,161.66,7.61643154]
[1730803544154,3.0937,161.69,161.67,7.61643154]
[1730803544555,3.0937,161.69,161.66,3.0942]
[1730803544556,3.0937,161.69,161.66,7.61643154]
[1730803545556,3.0941,161.67,161.65,7.61643154]
[1730803546558,3.0939,161.68,161.65,10.71083154]
[1730803548260,7.61643154,161.7,161.65,7.61643154]
[1730803550066,3.094,161.68,161.65,10.71083154]
[1730803550768,3.0936,161.7,161.67,10.71043154]
[1730803550963,7.61643154,161.74,161.69,7.61643154]
[1730803552870,7.61643154,161.72,161.68,2.76]
[1730803553068,7.61643154,161.72,161.68,10.37643154]
[1730803553467,3.0934,161.71,161.68,13.47033154]
[1730803553665,8.90113154,161.75,161.7,7.61643154]
[1730803554265,3.0931,161.73,161.7,7.61643154]
[1730803554867,1.2847,161.75,161.7,7.61643154]
[1730803555067,3.0929,161.74,161.72,7.61643154]
[1730803556471,7.61643154,161.75,161.7,7.61643154]
[1730803557064,3.0932,161.72,161.7,7.61643154]
[1730803563471,3.0932,161.72,161.71,7.61643154]
[1730803563775,7.61643154,161.77,161.71,10.70963154]
[1730803563975,7.61643154,161.77,161.73,7.61643154]
[1730803564577,7.61643154,161.78,161.73,7.61643154]
[1730803564777,7.61643154,161.78,161.74,7.61643154]
[1730803565277,3.0925,161.75,161.74,7.61643154]
[1730803570180,1.2894,161.8,161.74,7.61643154]
[1730803570386,7.61643154,161.79,161.74,7.61643154]
[1730803571379,3.0925,161.75,161.73,2.76]
[1730803573887,3.0927,161.74,161.73,2.76]
[1730803576190,3.0927,161.74,161.71,3.0933]
[1730803576391,3.0927,161.74,161.72,7.61643154]
[1730803582200,3.0929,161.73,161.72,7.61643154]
[1730803582692,7.61643154,161.77,161.72,7.61643154]
[1730803584200,3.0928,161.74,161.72,7.61643154]
[1730803595306,3.0929,161.73,161.72,7.61643154]
[1730803595504,7.61643154,161.76,161.71,2.76]
[1730803595808,7.61643154,161.76,161.7,7.61643154]
[1730803595809,3.0933,161.72,161.69,3.0935]
[1730803596019,7.61643154,161.73,161.69,2.76]
[1730803596309,7.61643154,161.73,161.69,7.61643154]
[1730803596310,3.0931,161.72,161.69,7.61643154]
[1730803596506,8.98833154,161.75,161.7,7.61643154]
[1730803596707,10.37643154,161.77,161.72,7.61643154]
[1730803597013,7.61643154,161.77,161.72,7.61643154]
[1730803597611,3.0927,161.74,161.72,7.61643154]
[1730803598404,3.0924,161.76,161.72,10.70953154]
[1730803598712,3.0924,161.76,161.73,7.61643154]
[1730803599298,3.0923,161.77,161.75,7.61643154]
[1730803599506,54.57069102,161.8,161.76,7.61643154]
[1730803599709,3.9305,161.87,161.78,7.61643154]
[1730803600011,1.05584172,161.86,161.81,7.61643154]
[1730803600216,22.76657916,161.86,161.81,7.61643154]
[1730803600404,7.61643154,161.86,161.81,7.61643154]
[1730803601307,3.0912,161.82,161.81,7.61643154]
[1730803603709,3.0912,161.82,161.79,7.61643154]
[1730803604014,3.0915,161.81,161.77,3.092]
[1730803604220,7.61643154,161.83,161.77,7.61643154]
[1730803604824,7.61643154,161.83,161.73,2.6512]
[1730803605009,7.61643154,161.81,161.76,7.61643154]
[1730803605213,3.0909,161.84,161.76,7.61643154]
[1730803605414,7.61643154,161.82,161.76,7.61643154]
[1730803605916,3.0918,161.8,161.77,7.61643154]
[1730803606116,7.61643154,161.82,161.76,7.61643154]
[1730803606319,11.33883931,161.86,161.77,7.61643154]
[1730803606520,7.61643154,161.85,161.8,7.61643154]
[1730803607321,3.0916,161.8,161.79,7.61643154]
[1730803607716,7.61643154,161.82,161.75,2.76]
[1730803608020,7.61643154,161.82,161.76,7.61643154]
[1730803608221,3.0919,161.79,161.76,7.61643154]
[1730803610312,3.0919,161.79,161.75,5.8524]
[1730803610313,3.0919,161.79,161.78,7.61643154]
[1730803611720,3.0914,161.81,161.78,7.61643154]
[1730803611920,3.0914,161.81,161.79,7.61643154]
[1730803612125,7.61643154,161.84,161.79,7.61643154]
[1730803613021,3.0916,161.8,161.79,7.61643154]
[1730803613727,14.10037073,161.86,161.79,7.61643154]
[1730803613928,7.61643154,161.84,161.79,7.61643154]
[1730803614119,7.61643154,161.83,161.78,7.61643154]
[1730803614727,10.70773154,161.82,161.78,7.61643154]
[1730803615028,7.61643154,161.82,161.78,7.61643154]
[1730803615629,3.0917,161.8,161.78,7.61643154]
[1730803619229,7.61643154,161.82,161.78,7.61643154]
[1730803619424,3.0918,161.79,161.78,7.61643154]
[1730803619624,11.35768394,161.86,161.76,7.61643154]
[1730803619625,7.61643154,161.81,161.76,7.61643154]
[1730803620024,3.0921,161.78,161.76,7.61643154]
[1730803620727,7.61643154,161.81,161.76,7.61643154]
[1730803620922,7.61643154,161.8,161.74,2.76]
[1730803621121,7.61643154,161.78,161.73,10.37643154]
[1730803621529,3.0922,161.77,161.73,10.37643154]
[1730803621827,7.61643154,161.78,161.73,10.37643154]
[1730803622019,7.61643154,161.78,161.73,13.46933154]
[1730803622419,3.0926,161.75,161.73,13.46933154]
[1730803622618,7.61643154,161.75,161.66,4.1997]
[1730803622822,7.61643154,161.75,161.7,7.61643154]
[1730803623230,7.61643154,161.75,161.7,10.70983154]
[1730803624230,3.093,161.73,161.7,10.70983154]
[1730803625037,7.61643154,161.75,161.7,10.70983154]
[1730803625732,3.093,161.73,161.7,3.0934]
[1730803626034,3.093,161.73,161.7,10.70983154]
[1730803628027,3.093,161.73,161.71,3.0932]
[1730803628226,3.093,161.73,161.72,7.61643154]
[1730803629737,3.093,161.73,161.71,13.46963154]
[1730803629928,3.093,161.73,161.71,5.8532]
[1730803636636,7.61643154,161.75,161.71,5.8532]
[1730803637550,3.0928,161.74,161.71,5.8532]
[1730803637939,3.093,161.73,161.71,2.76]
[1730803639239,7.61643154,161.73,161.66,4.1997]
[1730803639448,3.0933,161.71,161.67,10.37643154]
[1730803639646,7.61643154,161.72,161.67,10.37643154]
[1730803640141,7.61643154,161.72,161.68,3.0939]
[1730803640340,7.61643154,161.73,161.68,3.0939]
[1730803640544,7.61643154,161.73,161.69,7.61643154]
[1730803641154,3.0933,161.72,161.69,10.71003154]
[1730803641448,7.61643154,161.73,161.69,10.71003154]
[1730803641942,3.0931,161.72,161.69,10.71003154]
[1730803642937,7.61643154,161.73,161.69,10.71003154]
[1730803643149,3.0934,161.71,161.69,10.71003154]
[1730803646756,3.0934,161.71,161.69,3.0936]
[1730803647854,3.0939,161.68,161.66,5.8848]
[1730803648059,7.61643154,161.72,161.66,5.8848]
[1730803648060,7.61643154,161.7,161.66,4.151]
[1730803648262,7.61643154,161.7,161.66,1.391]
[1730803648458,7.61643154,161.7,161.66,9.00743154]
[1730803649064,3.0939,161.69,161.66,12.10163154]
[1730803650762,3.0939,161.68,161.66,12.10163154]
[1730803653365,3.0939,161.68,161.66,14.86163154]
[1730803654460,3.0939,161.68,161.6,2.714]
[1730803654461,7.61643154,161.68,161.64,5.8546]
[1730803655162,3.0941,161.67,161.64,5.8546]
[1730803655861,3.0941,161.67,161.64,3.0946]
[1730803656763,7.61643154,161.67,161.63,2.76]
[1730803657062,7.61643154,161.65,161.63,2.76]
[1730803658367,10.71103154,161.65,161.63,2.76]
[1730803659469,3.0946,161.65,161.63,2.76]
[1730803660469,7.61643154,161.66,161.62,3.095]
[1730803660668,3.0946,161.64,161.62,3.095]
[1730803664273,1.3526,161.7,161.62,7.61643154]
[1730803664274,7.61643154,161.68,161.62,7.61643154]
[1730803664473,7.61643154,161.68,161.64,3.0945]
[1730803666364,3.0943,161.66,161.64,3.0945]
[1730803668173,7.61643154,161.65,161.57,51.9480311]
[1730803668374,1.3526,161.7,161.58,10.37643154]
[1730803668375,7.61643154,161.63,161.58,10.37643154]
[1730803668571,6.1877,161.69,161.61,7.61643154]
[1730803668872,7.61643154,161.67,161.62,10.37643154]
[1730803669268,3.0944,161.66,161.64,3.0946]
[1730803669472,7.61643154,161.67,161.64,3.0946]
[1730803669871,10.71063154,161.67,161.64,3.0946]
[1730803672076,3.094,161.68,161.65,3.0944]
[1730803672573,3.0941,161.67,161.65,3.0944]
[1730803672770,10.71053154,161.67,161.65,3.0944]
[1730803673676,10.71053154,161.67,161.64,3.0945]
[1730803674072,3.0947,161.64,161.61,2.76]
[1730803674271,7.61643154,161.66,161.63,3.0947]
[1730803675580,3.0947,161.64,161.61,13.47153154]
[1730803676669,10.71113154,161.64,161.61,5.8551]
[1730803677977,10.71113154,161.64,161.62,3.095]
[1730803678174,1.372,161.69,161.61,2.76]
[1730803678380,7.61643154,161.68,161.63,7.61643154]
[1730803678683,7.61643154,161.68,161.64,3.0945]
[1730803678882,3.0941,161.67,161.64,3.0945]
[1730803679070,3.0941,161.67,161.63,7.61643154]
[1730803679878,3.0941,161.67,161.64,3.0945]
[1730803680675,10.71053154,161.67,161.64,3.0945]
[1730803682982,3.0941,161.67,161.64,3.0945]
[1730803686977,10.71053154,161.67,161.64,3.0945]
[1730803687174,3.0946,161.65,161.62,3.0949]
[1730803687374,3.0946,161.65,161.59,2.7103]
[1730803687375,7.61643154,161.65,161.6,2.76]
[1730803687580,7.61643154,161.65,161.6,10.37643154]
[1730803688182,7.61643154,161.65,161.61,3.0951]
[1730803688183,3.0947,161.64,161.61,3.0951]
[1730803690381,10.71113154,161.64,161.61,3.0951]
[1730803691977,7.61643154,161.64,161.59,7.61643154]
[1730803692185,7.61643154,161.64,161.59,10.37643154]
[1730803692686,3.0952,161.62,161.59,10.37643154]
[1730803693993,3.0954,161.61,161.59,5.8555]
[1730803694385,7.61643154,161.63,161.59,2.76]
[1730803694579,3.0951,161.62,161.6,3.0954]
[1730803695094,3.0952,161.61,161.59,5.8555]
[1730803695587,3.0952,161.61,161.59,3.0955]
[1730803695983,3.0952,161.61,161.58,5.8557]
[1730803696483,3.0952,161.61,161.56,7.61643154]
[1730803696484,7.61643154,161.6,161.56,5.856]
[1730803696893,3.0958,161.59,161.56,5.856]
[1730803697986,3.0958,161.59,161.56,3.096]
[1730803698983,3.0958,161.59,161.55,2.76]
[1730803699182,3.0958,161.59,161.57,3.0959]
[1730803699380,3.0953,161.61,161.58,7.61643154]
[1730803700187,3.0953,161.61,161.58,10.71213154]
[1730803700385,3.0954,161.6,161.58,10.71213154]
[1730803701385,1.3056,161.63,161.48,44.54]
[1730803701696,10.71293154,161.55,161.51,2.76]
[1730803702087,10.71293154,161.55,161.52,3.0968]
[1730803703897,10.71293154,161.55,161.51,2.76]
[1730803704196,10.71293154,161.55,161.53,3.0967]
[1730803705603,3.0966,161.54,161.52,3.0969]
[1730803705801,10.71303154,161.54,161.5,2.76]
[1730803706301,3.0966,161.54,161.5,10.37643154]
[1730803707405,3.0966,161.54,161.52,3.0969]
[1730803708196,3.0966,161.54,161.52,10.71333154]
[1730803708701,3.0966,161.54,161.52,3.0969]
[1730803709998,7.61643154,161.55,161.52,3.0969]
[1730803710200,10.71293154,161.55,161.52,3.0969]
[1730803711208,3.0966,161.54,161.52,3.0969]
[1730803712101,10.71303154,161.54,161.52,3.0969]
[1730803716012,7.61643154,161.54,161.51,3.0971]
[1730803716210,3.0968,161.53,161.51,3.0971]
[1730803716711,7.61643154,161.52,161.51,3.0971]
[1730803718311,3.0968,161.53,161.22,57.6066981]
[1730803718312,3.0968,161.53,161.48,3.0976]
[1730803718510,2.76,161.56,161.47,2.76]
[1730803718811,7.61643154,161.54,161.49,7.61643154]
[1730803719208,10.71313154,161.54,161.51,3.097]
[1730803719608,7.61643154,161.54,161.51,3.097]
[1730803719813,3.0967,161.53,161.51,3.097]
[1730803720115,10.71313154,161.53,161.51,3.097]
[1730803721014,7.61643154,161.52,161.51,3.097]
[1730803724422,10.71313154,161.53,161.51,3.097]
[1730803726520,7.61643154,161.52,161.48,3.0976]
[1730803726723,7.61643154,161.49,161.48,3.0976]
[1730803728022,7.61643154,161.51,161.48,3.0976]
[1730803728229,3.0973,161.5,161.48,3.0976]
[1730803729126,7.61643154,161.49,161.47,2.76]
[1730803729338,1.3957,161.56,161.44,1.3726]
[1730803729339,7.61643154,161.48,161.46,2.76]
[1730803729521,7.61643154,161.48,161.44,1.3726]
[1730803729728,7.61643154,161.46,161.44,4.1326]
[1730803730025,7.61643154,161.46,161.45,3.0982]
[1730803731729,7.61643154,161.46,161.44,4.1326]
[1730803731926,7.61643154,161.46,161.44,3.0983]
[1730803732319,7.61643154,161.46,161.43,2.76]
[1730803732525,7.61643154,161.46,161.4,4.47220281]
[1730803732732,7.61643154,161.44,161.41,2.76]
[1730803733535,7.61643154,161.42,161.41,3.0989]
[1730803734125,10.71533154,161.42,161.4,3.0992]
[1730803734732,7.61643154,161.42,161.4,3.0992]
[1730803735331,7.61643154,161.42,161.39,4.053]
[1730803735533,7.61643154,161.42,161.41,3.099]
[1730803737134,7.61643154,161.42,161.34,2.6709]
[1730803737330,7.61643154,161.4,161.35,10.37643154]
[1730803737835,7.61643154,161.4,161.36,2.76]
[1730803738348,7.61643154,161.4,161.39,3.0994]
[1730803738740,7.61643154,161.41,161.39,3.0994]
[1730803740542,1.3501,161.45,161.37,7.61643154]
[1730803740842,7.61643154,161.43,161.37,7.61643154]
[1730803741045,3.0986,161.44,161.41,3.0989]
[1730803741336,10.71503154,161.44,161.41,3.0989]
[1730803741937,3.0987,161.43,161.41,3.0989]
[1730803743544,3.0982,161.46,161.43,3.0986]
[1730803743841,7.61643154,161.44,161.43,3.0986]
[1730803744043,7.61643154,161.44,161.4,10.37643154]
[1730803744239,7.61643154,161.43,161.4,2.76]
[1730803745735,7.61643154,161.43,161.41,3.0989]
[1730803746345,7.61643154,161.43,161.41,3.099]
[1730803747137,7.61643154,161.43,161.42,3.0989]
[1730803750547,7.61643154,161.46,161.44,3.0984]
[1730803751437,10.71453154,161.46,161.44,3.0984]
[1730803753347,7.61643154,161.45,161.44,3.0984]
[1730803757050,7.61643154,161.45,161.43,3.0986]
[1730803764953,7.61643154,161.49,161.44,7.61643154]
[1730803765153,7.61643154,161.49,161.44,10.37643154]
[1730803766049,10.71393154,161.49,161.44,10.37643154]
[1730803766248,7.61643154,161.47,161.44,2.76]
[1730803767060,10.71443154,161.47,161.44,5.8583]
[1730803767965,7.61643154,161.47,161.44,5.8583]
[1730803768159,3.0981,161.46,161.44,5.8583]
[1730803768570,7.61643154,161.47,161.45,3.0983]
[1730803768865,10.71443154,161.47,161.45,3.0983]
[1730803773064,1.3986,161.5,161.44,2.76]
[1730803773267,1.3986,161.5,161.44,10.37643154]
[1730803773563,7.61643154,161.49,161.44,10.37643154]
[1730803773767,7.61643154,161.49,161.47,3.0978]
[1730803775461,10.71403154,161.49,161.47,3.0978]
[1730803775656,10.71403154,161.49,161.44,10.37643154]
[1730803775657,7.61643154,161.51,161.5,3.0972]
[1730803776063,7.61643154,161.51,161.45,7.61643154]
[1730803776256,4.0958,161.56,161.49,3.0975]
[1730803776463,7.61643154,161.5,161.49,3.0975]
[1730803784771,7.61643154,161.5,161.47,3.0979]
[1730803784772,3.0975,161.49,161.47,3.0979]
[1730803784972,7.61643154,161.5,161.44,10.37643154]
[1730803786362,3.0978,161.48,161.46,3.098]
[1730803787165,10.71423154,161.48,161.45,3.0981]
[1730803787469,4.0958,161.56,161.45,2.76]
[1730803787470,10.71443154,161.47,161.45,2.76]
[1730803787671,10.71443154,161.47,161.45,5.8581]
[1730803787871,7.61643154,161.47,161.45,2.76]
[1730803789269,7.61643154,161.47,161.46,3.0981]
[1730803789868,3.0981,161.46,161.45,2.76]
[1730803790266,3.0981,161.46,161.44,3.0984]
[1730803790678,10.71443154,161.47,161.43,3.0986]
[1730803790875,10.71443154,161.47,161.42,11.70673154]
[1730803791870,3.0981,161.46,161.44,3.0983]
[1730803792071,7.61643154,161.46,161.41,7.61643154]
[1730803792272,7.61643154,161.45,161.42,2.76]
[1730803792467,10.71473154,161.45,161.42,2.76]
[1730803792675,7.61643154,161.43,161.38,7.61643154]
[1730803792870,7.61643154,161.43,161.39,2.76]
[1730803793174,10.71523154,161.43,161.4,3.0992]
[1730803793371,10.71523154,161.43,161.39,2.76]
[1730803793771,10.71523154,161.43,161.41,3.0989]
[1730803795071,3.0988,161.43,161.41,3.0989]
[1730803795668,10.71503154,161.44,161.41,3.0989]
[1730803796474,10.71503154,161.44,161.4,3.0991]
[1730803796680,10.71503154,161.44,161.39,10.37643154]
[1730803797076,10.71503154,161.44,161.41,3.0989]
[1730803800577,10.71503154,161.44,161.4,2.76]
[1730803801178,10.71503154,161.44,161.42,3.0988]
[1730803803378,10.71503154,161.44,161.41,3.099]
[1730803803778,3.0991,161.41,161.39,3.0993]
[1730803803980,10.71553154,161.41,161.38,2.76]
[1730803804484,10.71553154,161.41,161.39,3.0994]
[1730803805177,7.61643154,161.41,161.39,3.0994]
[1730803805482,3.099,161.42,161.38,2.76]
[1730803805781,10.71513154,161.43,161.4,3.0991]
[1730803805972,10.71513154,161.43,161.38,2.76]
[1730803805973,7.61643154,161.43,161.38,2.76]
[1730803806182,7.61643154,161.43,161.39,7.61643154]
[1730803806377,7.61643154,161.43,161.4,3.0992]
[1730803806378,10.71523154,161.43,161.4,3.0992]
[1730803810083,10.71523154,161.43,161.38,10.37643154]
[1730803810084,10.71523154,161.43,161.41,3.099]
[1730803810295,3.0985,161.44,161.4,7.61643154]
[1730803810590,7.61643154,161.46,161.4,7.61643154]
[1730803810783,7.61643154,161.45,161.43,3.0985]
[1730803810987,10.71483154,161.45,161.38,2.76]
[1730803811290,10.71483154,161.45,161.4,7.61643154]
[1730803811491,10.71483154,161.45,161.42,3.0987]
[1730803813979,2.76,161.5,161.41,7.61643154]
[1730803814188,10.71463154,161.46,161.43,3.0985]
[1730803814389,7.61643154,161.46,161.43,3.0985]
[1730803815285,3.0983,161.45,161.43,3.0985]
[1730803818886,2.86294844,161.62,161.41,7.61643154]
[1730803819086,2.86294844,161.62,161.37,53.41077452]
[1730803819087,10.71413154,161.48,161.45,3.0981]
[1730803819288,7.61643154,161.47,161.43,2.76]
[1730803819993,3.0981,161.46,161.44,3.0983]
[1730803820298,7.61643154,161.47,161.44,3.0983]
[1730803820692,3.0981,161.46,161.44,3.0983]
[1730803820997,7.61643154,161.46,161.43,5.8586]
[1730803821188,3.0984,161.45,161.43,5.8586]
[1730803822194,3.0984,161.45,161.43,3.0986]
[1730803822595,10.71483154,161.45,161.43,3.0986]
[1730803828797,7.61643154,161.45,161.41,2.76]
[1730803829100,10.71473154,161.45,161.43,3.0986]
[1730803830504,3.0983,161.45,161.43,3.0986]
[1730803830895,10.71463154,161.46,161.43,3.0986]
[1730803832299,3.0978,161.48,161.43,7.61643154]
[1730803832497,3.0978,161.48,161.44,7.61643154]
[1730803833603,3.0978,161.48,161.45,3.0982]
[1730803836910,7.61643154,161.47,161.45,3.0982]
[1730803838495,7.61643154,161.47,161.46,3.0981]
[1730803838809,10.71403154,161.49,161.44,7.61643154]
[1730803839016,7.61643154,161.49,161.44,7.61643154]
[1730803839304,7.61643154,161.49,161.46,3.098]
[1730803840301,3.0978,161.48,161.46,3.098]
[1730803845102,3.0978,161.48,161.44,7.61643154]
[1730803845103,7.61643154,161.49,161.47,3.0978]
[1730803845407,7.61643154,161.51,161.46,7.61643154]
[1730803845812,54.66640796,161.52,161.48,7.61643154]
[1730803846007,1.4165,161.57,161.49,7.61643154]
[1730803846206,6.1906,161.61,161.49,10.37643154]
[1730803846207,7.61643154,161.55,161.49,10.37643154]
[1730803846409,10.71293154,161.55,161.52,3.0968]
[1730803848612,3.0966,161.54,161.52,3.0968]
[1730803848913,2.76,161.58,161.49,10.37643154]
[1730803849109,7.61643154,161.55,161.52,3.0969]
[1730803849310,10.71293154,161.55,161.52,3.0969]
[1730803850614,3.0965,161.55,161.52,3.0969]
[1730803850816,10.71273154,161.56,161.53,3.0966]
[1730803851514,7.61643154,161.57,161.52,7.61643154]
[1730803851909,3.096,161.57,161.55,3.0962]
[1730803852109,7.61643154,161.58,161.55,3.0962]
[1730803852516,8.95433154,161.62,161.57,7.61643154]
[1730803853115,11.34699381,161.66,161.59,3.0955]
[1730803853310,7.61643154,161.63,161.59,3.0955]
[1730803854005,3.095,161.62,161.59,3.0955]
[1730803854809,10.71133154,161.63,161.59,3.0955]
[1730803855308,7.61643154,161.63,161.59,3.0955]
[1730803855509,3.095,161.62,161.59,3.0955]
[1730803856107,3.095,161.62,161.57,10.37643154]
[1730803856108,7.61643154,161.63,161.6,3.0952]
[1730803856317,10.71123154,161.64,161.59,7.61643154]
[1730803857118,10.71123154,161.64,161.6,3.0953]
[1730803860309,3.0948,161.63,161.6,3.0953]
[1730803865118,3.0951,161.62,161.59,3.0955]
[1730803867630,3.0957,161.59,161.56,3.0961]
[1730803867823,7.61643154,161.6,161.56,2.74]
[1730803868320,7.61643154,161.6,161.55,10.71263154]
[1730803868824,3.0959,161.58,161.55,7.61643154]
[1730803869037,3.0959,161.58,161.56,3.0962]
[1730803874226,3.0959,161.58,161.55,10.71273154]
[1730803874433,7.61643154,161.59,161.55,7.61643154]
[1730803874731,3.0961,161.57,161.55,7.61643154]
[1730803875330,7.61643154,161.59,161.5,4.0813]
[1730803875529,3.0965,161.55,161.52,3.0969]
[1730803875835,3.0965,161.55,161.51,10.37643154]
[1730803876132,3.0968,161.53,161.51,5.857]
[1730803877028,3.0968,161.53,161.51,13.47343154]
[1730803877630,3.0968,161.53,161.51,5.857]
[1730803878832,3.0968,161.53,161.51,2.76]
[1730803879034,3.0968,161.53,161.51,5.8571]
[1730803880932,3.0966,161.54,161.51,5.8571]
[1730803881127,3.0966,161.54,161.51,3.0971]
[1730803884734,7.61643154,161.55,161.5,2.76]
[1730803884932,3.097,161.52,161.5,5.8572]
[1730803885134,3.097,161.52,161.5,10.37643154]
[1730803885533,3.097,161.52,161.5,13.47373154]
[1730803886935,3.097,161.52,161.5,10.37643154]
[1730803887138,3.097,161.52,161.5,13.47373154]
[1730803889543,3.097,161.52,161.5,10.71373154]
[1730803890446,7.61643154,161.55,161.5,7.61643154]
[1730803890647,3.0968,161.53,161.51,3.0971]
[1730803890946,8.90533154,161.57,161.51,7.61643154]
[1730803891149,1.2889,161.57,161.54,3.0964]
[1730803891336,7.61643154,161.58,161.54,3.0964]
[1730803891544,7.61643154,161.59,161.54,7.61643154]
[1730803891743,3.0961,161.57,161.55,3.0963]
[1730803892443,3.0964,161.55,161.53,3.0967]
[1730803893453,7.61643154,161.56,161.53,3.0967]
[1730803893645,10.71263154,161.56,161.53,3.0967]
[1730803897652,3.096,161.57,161.52,10.37643154]
[1730803898350,3.096,161.57,161.55,3.0963]
[1730803898947,3.096,161.57,161.52,10.37643154]
[1730803899154,3.096,161.57,161.54,3.0965]
[1730803899448,10.71243154,161.57,161.54,3.0965]
[1730803906252,3.0962,161.56,161.52,10.37643154]
[1730803906452,7.61643154,161.56,161.52,2.76]
[1730803907255,7.61643154,161.54,161.5,2.76]
[1730803907651,7.61643154,161.52,161.5,2.76]
[1730803907848,10.71353154,161.52,161.5,2.76]
[1730803908457,3.0963,161.56,161.51,7.61643154]
[1730803908649,3.0963,161.56,161.53,7.61643154]
[1730803908854,1.2826,161.61,161.53,7.61643154]
[1730803909054,3.096,161.58,161.55,3.0963]
[1730803909352,7.61643154,161.59,161.55,3.0963]
[1730803909852,7.61643154,161.59,161.54,7.61643154]
[1730803910057,3.0961,161.57,161.54,3.0965]
[1730803910457,7.61643154,161.58,161.52,7.61643154]
[1730803910653,3.0963,161.56,161.53,3.0966]
[1730803911152,3.0963,161.56,161.52,7.61643154]
[1730803911353,3.0963,161.56,161.54,3.0965]
[1730803912554,3.0965,161.55,161.52,10.71323154]
[1730803912760,3.0965,161.55,161.5,2.76]
[1730803912761,3.0965,161.55,161.51,7.61643154]
[1730803913156,3.0965,161.55,161.52,3.0967]
[1730803913561,3.0965,161.55,161.51,7.61643154]
[1730803913756,3.0965,161.55,161.52,3.0969]
[1730803915661,3.0965,161.55,161.53,3.0967]
[1730803924670,3.0963,161.56,161.53,3.0966]
[1730803925172,3.0961,161.57,161.54,3.0965]
[1730803926769,10.71253154,161.57,161.54,3.0965]
[1730803927471,3.0962,161.56,161.54,3.0965]
[1730803927667,7.61643154,161.57,161.52,13.47323154]
[1730803928568,7.61643154,161.57,161.52,10.37643154]
[1730803928771,3.0963,161.56,161.53,3.0967]
[1730803929080,7.61643154,161.57,161.53,3.0967]
[1730803929282,7.61643154,161.56,161.53,3.0967]
[1730803930280,3.0964,161.55,161.53,3.0967]
[1730803931187,3.0961,161.57,161.54,3.0964]
[1730803931878,3.0961,161.57,161.53,7.61643154]
[1730803932180,1.2826,161.61,161.54,7.61643154]
[1730803932483,7.61643154,161.6,161.55,7.61643154]
[1730803932680,3.0958,161.59,161.56,3.096]
[1730803933790,3.0958,161.59,161.57,3.0959]
[1730803937494,10.71193154,161.6,161.57,3.0959]
[1730803938194,7.61643154,161.62,161.58,7.61643154]
[1730803938492,2.74,161.66,161.59,7.61643154]
[1730803938691,3.0948,161.64,161.61,3.0951]
[1730803939191,3.0948,161.63,161.61,3.0951]
[1730803939692,10.71123154,161.63,161.6,3.0953]
[1730803943583,10.71123154,161.63,161.59,7.61643154]
[1730803943987,3.0948,161.63,161.59,7.61643154]
[1730803944387,3.0947,161.64,161.61,3.0951]
[1730803944595,3.0947,161.64,161.61,10.71153154]